bitfinex-derivatives/quotes_ETHF0:USTF0_20250103
["timestamp","ask_amount","ask_price","bid_price","bid_amount"]
[1735901767057,3.42468106,3446.7,3446.6,1.30200767]
[1735901770658,3.86036639,3446.8,3446.6,1.01165767]
[1735901770867,3.86036639,3446.8,3446.7,0.29035]
[1735901771957,3.71502106,3446.8,3446.7,0.29035]
[1735901772860,3.42468106,3446.8,3446.7,0.29035]
[1735901774361,3.71501106,3446.9,3446.8,0.29034]
[1735901774860,3.42468106,3446.9,3446.8,1.30199767]
[1735901776461,2.28216858,3446.9,3446.8,1.30199767]
[1735901777870,3.86035493,3447.0,3446.9,0.29033]
[1735901778968,3.86035493,3447.0,3446.9,3.49813]
[1735901779271,2.28178001,3447.0,3446.9,3.49813]
[1735901781473,2.57210001,3447.0,3446.9,3.49813]
[1735901782565,2.57210001,3447.0,3446.9,0.29033]
[1735901783765,2.28178001,3447.0,3446.7,3.2078]
[1735901783971,0.29034,3446.8,3446.7,3.49814]
[1735901784972,2.57212001,3446.8,3446.7,3.49814]
[1735901785468,2.57212001,3446.8,3446.7,4.50979767]
[1735901790876,2.28178001,3446.8,3446.7,4.50979767]
[1735901793379,3.71500106,3447.0,3446.8,0.29034]
[1735901793380,2.28178001,3446.9,3446.8,0.29034]
[1735901799584,43.08178001,3446.9,3446.8,0.29034]
[1735901800285,40.8,3446.9,3446.8,0.29034]
[1735901804285,40.8,3446.9,3446.8,4.84887339]
[1735901804286,44.22468106,3446.9,3446.8,4.84887339]
[1735901804785,3.42468106,3446.9,3446.8,4.84887339]
[1735901805781,3.86034831,3446.9,3446.8,4.84887339]
[1735901806586,3.42468106,3446.9,3446.8,4.84887339]
[1735901808383,0.43566725,3446.9,3446.8,4.24182424]
[1735901809186,4.57114381,3447.0,3446.8,3.95148424]
[1735901809388,4.57114381,3447.0,3446.9,0.29033]
[1735901810379,5.00681106,3447.0,3446.9,4.84856385]
[1735901811190,5.29713106,3447.0,3446.9,4.84856385]
[1735901813985,5.00681106,3447.0,3446.9,5.86022152]
[1735901815892,4.57114381,3447.1,3447.0,0.29032]
[1735901816501,5.00681106,3447.1,3447.0,4.84734666]
[1735901819494,4.57114381,3447.1,3447.0,4.84734666]
[1735901820400,4.57114381,3447.1,3447.0,5.85900433]
[1735901820996,4.57114381,3447.2,3447.1,0.29031]
[1735901821295,4.57114381,3447.2,3447.1,1.40831]
[1735901822395,2.28460875,3447.3,3447.2,0.2903]
[1735901822696,2.28460875,3447.3,3447.2,4.50975767]
[1735901824098,2.28460875,3447.3,3447.2,15.28866433]
[1735901825096,2.28460875,3447.4,3447.3,0.29029]
[1735901826193,3.42691313,3447.5,3447.3,3.9499986]
[1735901826194,2.28460875,3447.5,3447.3,3.9499986]
[1735901826394,2.28460875,3447.5,3447.4,1.30194767]
[1735901827596,2.28460875,3447.7,3447.6,0.29027]
[1735901827792,2.28460875,3447.7,3447.6,4.50972767]
[1735901829804,2.28460875,3447.7,3447.6,3.49807]
[1735901830098,1.65079875,3447.7,3447.6,10.52138534]
[1735901830495,1.65079875,3447.7,3447.6,5.52138534]
[1735901830697,1.04215875,3447.7,3447.6,5.52138534]
[1735901832299,0.29018,3448.7,3447.6,28.60280988]
[1735901832601,3.71708313,3448.8,3448.7,0.29018]
[1735901833303,3.42691313,3448.8,3448.7,0.29018]
[1735901833704,3.71708313,3448.8,3448.7,0.29018]
[1735901834006,0.29017,3448.8,3448.7,0.29018]
[1735901834407,3.71708313,3448.9,3448.8,0.29017]
[1735901835298,0.29017,3448.9,3448.8,0.29017]
[1735901836111,41.09017,3448.9,3448.8,0.29017]
[1735901839212,40.8,3448.9,3448.6,3.2078]
[1735901839404,0.29018,3448.8,3448.7,0.29017]
[1735901845119,1.30183767,3448.8,3448.7,0.29017]
[1735901851527,42.10183767,3448.8,3448.7,0.29017]
[1735901859127,41.09018,3448.8,3448.7,0.29017]
[1735901867444,44.51709313,3448.8,3448.7,0.29017]
[1735901870048,44.9525392,3448.8,3448.7,0.29017]
[1735901871241,41.52562607,3448.8,3448.7,0.29017]
[1735901872545,46.09676988,3448.8,3448.7,0.29017]
[1735901873550,41.52562607,3448.8,3448.7,0.29017]
[1735901876351,46.20714109,3448.8,3448.7,0.29017]
[1735901879353,51.92038066,3448.8,3448.7,0.29017]
[1735901883557,46.20714109,3448.8,3448.7,0.29017]
[1735901886460,51.92040154,3448.8,3448.7,0.29017]
[1735901888751,10.83022154,3448.8,3448.7,0.29017]
[1735901891264,3.42566447,3449.1,3449.0,0.29015]
[1735901891458,3.42566447,3449.1,3449.0,4.50960767]
[1735901891665,3.42566447,3449.1,3449.0,6.63926534]
[1735901892162,3.42566447,3449.1,3449.0,5.62760767]
[1735901892959,0.29014,3449.2,3449.1,0.29014]
[1735901901057,0.29014,3449.1,3449.0,3.2078]
[1735901901361,0.29017,3448.8,3448.7,4.53839467]
[1735901901667,41.09017,3448.8,3448.7,4.53839467]
[1735901903070,0.29018,3448.7,3448.6,0.29018]
[1735901903270,0.29019,3448.6,3448.5,4.50963767]
[1735901904372,0.29019,3448.6,3448.5,3.2078]
[1735901905474,4.14624249,3448.6,3448.5,3.2078]
[1735901908370,0.725679,3448.6,3448.5,3.2078]
[1735901909775,0.29019,3448.6,3448.5,3.2078]
[1735901911275,4.14570787,3448.6,3448.5,3.2078]
[1735901911668,4.14570787,3448.6,3448.5,4.50964767]
[1735901912170,3.85551787,3448.6,3448.5,4.50964767]
[1735901912566,4.14570787,3448.6,3448.5,4.50964767]
[1735901912976,0.29019,3448.6,3448.5,4.50964767]
[1735901919575,3.71021887,3448.6,3448.5,4.50964767]
[1735901920981,0.29019,3448.6,3448.5,4.50964767]
[1735901921779,0.29019,3448.6,3448.5,3.2078]
[1735901922178,0.29019,3448.6,3448.5,3.49799]
[1735901922374,3.71021887,3448.6,3448.5,3.2078]
[1735901922574,4.72187654,3448.6,3448.5,3.2078]
[1735901923079,4.72187654,3448.6,3448.2,1.81002182]
[1735901923080,0.72549,3448.5,3448.0,7.74619467]
[1735901923280,0.29023,3448.1,3448.0,7.74619467]
[1735901923577,0.29023,3448.1,3448.0,3.2078]
[1735901923877,0.29023,3448.1,3448.0,3.49804]
[1735901924278,0.29023,3448.1,3448.0,3.2078]
[1735901924677,0.29023,3448.1,3448.0,3.49804]
[1735901925381,0.29023,3448.1,3448.0,3.2078]
[1735901925681,0.29023,3448.1,3448.0,3.49804]
[1735901925982,0.29023,3448.1,3448.0,3.2078]
[1735901933088,0.29024,3448.0,3447.9,1.30189767]
[1735901935287,0.29024,3448.0,3447.9,1.01165767]
[1735901935686,0.29024,3448.0,3447.9,1.30189767]
[1735901936186,0.29024,3448.0,3447.9,1.01165767]
[1735901936587,0.29024,3448.0,3447.9,1.30189767]
[1735901937483,0.29024,3448.0,3447.9,1.01165767]
[1735901938384,0.29024,3448.0,3447.9,1.30189767]
[1735901938787,0.29024,3448.0,3447.9,1.01165767]
[1735901938983,0.29024,3448.0,3447.9,1.30189767]
[1735901939386,1.73723767,3448.1,3447.7,4.21945767]
[1735901939583,0.29025,3447.8,3447.7,4.50971767]
[1735901940281,0.29025,3447.8,3447.7,4.21945767]
[1735901940480,0.29025,3447.8,3447.7,4.50971767]
[1735901943296,0.29025,3447.8,3447.7,4.21945767]
[1735901943488,0.29025,3447.8,3447.7,4.50971767]
[1735901944599,0.29025,3447.8,3447.7,1.30191767]
[1735901944798,0.29025,3447.8,3447.7,4.50971767]
[1735901951104,2.57113872,3447.8,3447.7,4.50971767]
[1735901953812,3.70934141,3447.8,3447.7,4.50971767]
[1735901954908,44.50934141,3447.8,3447.7,4.50971767]
[1735901955611,41.09025,3447.8,3447.7,4.50971767]
[1735901957013,44.50934141,3447.8,3447.7,4.50971767]
[1735901959609,44.50934141,3447.8,3447.7,1.30191767]
[1735901960809,44.50934141,3447.8,3447.7,1.01165767]
[1735901961010,44.50934141,3447.8,3447.7,1.30191767]
[1735901961209,44.50934141,3447.8,3447.7,1.01165767]
[1735901961409,44.9449137,3447.8,3447.7,1.30191767]
[1735901962314,44.9449137,3447.8,3447.7,1.01165767]
[1735901963116,44.9449137,3447.8,3447.7,1.30191767]
[1735901964220,44.6546637,3447.8,3447.5,3.2078]
[1735901964415,0.29027,3447.7,3447.6,1.30191767]
[1735901965514,0.72584229,3447.7,3447.6,1.30191767]
[1735901969420,5.29339492,3447.7,3447.6,1.30191767]
[1735901971523,0.29028,3447.5,3447.4,8.03647467]
[1735901972020,0.29028,3447.5,3447.4,9.04814234]
[1735901973527,0.72585229,3447.5,3447.4,4.50974767]
[1735901976729,0.72585229,3447.5,3447.4,4.21945767]
[1735901979827,0.72585229,3447.5,3447.4,4.50974767]
[1735901980035,5.29340492,3447.5,3447.4,4.50974767]
[1735901980227,5.29340492,3447.5,3447.4,4.21945767]
[1735901981633,5.29340492,3447.5,3447.4,4.50974767]
[1735901983832,0.72585229,3447.5,3447.4,4.50974767]
[1735901985731,0.72585229,3447.5,3447.4,1.30194767]
[1735901986329,5.29340492,3447.5,3447.4,1.30194767]
[1735901987233,5.29340492,3447.5,3447.4,1.01165767]
[1735901988529,5.29340492,3447.5,3447.3,7.97401501]
[1735901988530,0.29029,3447.4,3447.3,7.97401501]
[1735901988729,0.29029,3447.4,3447.3,7.74619467]
[1735901989733,0.29029,3447.4,3447.3,4.53839467]
[1735901990330,11.11970078,3447.4,3447.0,1.30197767]
[1735901990533,0.29031,3447.1,3447.0,1.30197767]
[1735901991739,0.72588229,3447.1,3447.0,1.30197767]
[1735901993147,4.15150138,3447.1,3447.0,1.30197767]
[1735901993337,4.15150138,3447.1,3447.0,1.01165767]
[1735901993537,4.15150138,3447.1,3447.0,1.30197767]
[1735901994538,3.71592909,3447.1,3447.0,1.30197767]
[1735901996248,3.71592909,3447.1,3447.0,4.50977767]
[1735901998246,0.29031,3447.1,3447.0,4.50977767]
[1735902000447,3.42561909,3447.2,3447.0,4.21945767]
[1735902000754,3.42561909,3447.2,3447.1,0.29031]
[1735902002150,3.42561909,3447.2,3447.1,5.29031]
[1735902002352,2.28275448,3447.5,3447.4,0.29029]
[1735902002552,2.28275448,3447.5,3447.4,5.62674767]
[1735902003946,2.28275448,3447.9,3447.4,18.41378201]
[1735902004156,2.28275448,3447.9,3447.8,4.50970767]
[1735902005346,2.28275448,3448.2,3447.8,15.03898314]
[1735902005548,2.28275448,3448.2,3448.1,0.29023]
[1735902006663,2.28275448,3448.3,3448.0,1.01165767]
[1735902006854,2.28275448,3448.3,3448.2,4.50967767]
[1735902008053,2.57296448,3448.4,3448.2,4.21945767]
[1735902008254,2.57296448,3448.4,3448.3,0.29021]
[1735902011859,2.28275448,3448.4,3448.3,0.29021]
[1735902012055,2.57295448,3448.4,3448.3,0.29021]
[1735902012458,2.28275448,3448.4,3448.3,0.29021]
[1735902012956,0.2902,3448.5,3448.4,0.2902]
[1735902013351,0.2902,3448.5,3448.4,1.30185767]
[1735902019465,2.57294448,3448.6,3448.5,0.29019]
[1735902020359,0.29019,3448.6,3448.5,0.29019]
[1735902022569,0.29019,3448.5,3448.4,0.2902]
[1735902031579,0.29019,3448.5,3448.4,1.30185767]
[1735902034685,2.28275448,3448.7,3448.6,0.29019]
[1735902034984,2.28275448,3448.7,3448.6,1.30184767]
[1735902035376,2.28275448,3448.7,3448.6,4.50964767]
[1735902035972,3.71578909,3448.9,3448.6,4.21945767]
[1735902035973,0.29017,3448.8,3448.6,4.21945767]
[1735902036178,0.29017,3448.8,3448.7,0.29018]
[1735902036378,2.57292448,3448.9,3448.8,0.29017]
[1735902038985,3.71578909,3448.9,3448.8,0.29017]
[1735902039784,3.71578909,3448.9,3448.6,4.21945767]
[1735902039991,3.71578909,3448.9,3448.4,0.72551]
[1735902039992,7.64507676,3448.9,3448.5,0.29019]
[1735902040285,0.29019,3448.6,3448.5,0.29019]
[1735902040988,2.56781086,3448.6,3448.5,0.29019]
[1735902041188,2.27762086,3448.6,3448.4,1.01165767]
[1735902041387,0.29019,3448.5,3448.4,1.30185767]
[1735902042185,2.56781086,3448.5,3448.4,1.30185767]
[1735902045494,4.15130597,3448.5,3448.4,1.30185767]
[1735902045694,4.15130597,3448.5,3448.4,1.01165767]
[1735902045890,4.15130597,3448.5,3448.4,1.30185767]
[1735902046691,0.72568688,3448.5,3448.4,1.01165767]
[1735902046996,0.29021,3448.3,3448.2,4.50967767]
[1735902047198,0.29021,3448.3,3448.2,4.21945767]
[1735902047388,0.29021,3448.3,3448.2,3.2078]
[1735902048594,5.29381788,3448.3,3448.2,7.7499361]
[1735902048790,5.29381788,3448.3,3448.2,8.0401561]
[1735902056595,5.29381788,3448.3,3448.2,4.8323561]
[1735902061202,5.29381788,3448.3,3448.2,0.29022]
[1735902062597,0.72570688,3448.3,3448.2,4.8323561]
[1735902064405,0.43549688,3448.3,3448.2,4.8323561]
[1735902065604,3.42690158,3448.3,3448.2,11.19403916]
[1735902066908,2.28439192,3448.3,3448.2,4.37905522]
[1735902069904,2.28439192,3448.4,3448.3,0.29021]
[1735902070102,2.28439192,3448.4,3448.3,1.30186767]
[1735902071399,2.28439192,3448.4,3448.3,5.39070289]
[1735902071707,2.28439192,3448.4,3448.3,4.37904522]
[1735902071907,2.28439192,3448.4,3448.3,5.39070289]
[1735902072206,2.28439192,3448.4,3448.3,4.37904522]
[1735902072400,2.28439192,3448.4,3448.3,5.39070289]
[1735902072908,2.28439192,3448.6,3448.5,0.29019]
[1735902073105,2.28439192,3448.6,3448.5,4.50964767]
[1735902074610,2.28439192,3448.6,3448.5,8.59848289]
[1735902077506,41.09015,3449.1,3448.6,0.29019]
[1735902077507,2.28439192,3448.7,3448.6,0.29019]
[1735902077811,2.28439192,3448.7,3448.6,1.30184767]
[1735902078711,2.28439192,3448.8,3448.7,0.29018]
[1735902080009,2.28439192,3448.8,3448.7,3.49798]
[1735902081811,2.28439192,3448.9,3448.7,3.49798]
[1735902082009,2.28439192,3448.9,3448.8,1.30182767]
[1735902082916,3.42690158,3449.0,3448.9,0.29016]
[1735902084410,3.8623203,3449.0,3448.9,0.29016]
[1735902084812,3.8623203,3449.0,3448.9,1.30181767]
[1735902085417,3.8623203,3449.0,3448.9,0.29016]
[1735902086214,2.28051934,3449.2,3449.1,0.29014]
[1735902086517,2.28051934,3449.2,3449.1,4.50959767]
[1735902087615,2.28051934,3449.3,3449.2,0.29013]
[1735902088718,3.42690158,3449.4,3449.1,4.21945767]
[1735902088910,3.42690158,3449.4,3449.3,1.30178767]
[1735902090413,3.71701158,3449.5,3449.3,1.01165767]
[1735902090718,3.71701158,3449.5,3449.4,0.29012]
[1735902092314,3.42690158,3449.5,3449.4,0.29012]
[1735902093623,44.51701158,3449.6,3449.5,0.29011]
[1735902094020,44.51701158,3449.6,3449.5,1.30176767]
[1735902094614,44.95236975,3449.6,3449.5,1.30176767]
[1735902096119,41.52546817,3449.6,3449.5,1.30176767]
[1735902096622,41.52546817,3449.6,3449.5,0.29011]
[1735902098723,44.6522614,3449.6,3449.3,3.2078]
[1735902099023,44.6522614,3449.6,3448.9,0.72541]
[1735902099024,1.01165767,3449.5,3449.2,0.29013]
[1735902099216,0.29015,3449.1,3449.0,0.29014]
[1735902099418,1.01165767,3449.1,3448.9,3.2078]
[1735902099618,1.01165767,3449.1,3448.7,4.54284446]
[1735902099919,0.29017,3448.8,3448.7,4.54284446]
[1735902100223,0.2902,3448.4,3448.3,5.84471213]
[1735902100429,42.10185767,3448.4,3448.3,4.54284446]
[1735902101723,42.10185767,3448.4,3448.0,0.29024]
[1735902101724,0.29023,3448.1,3448.0,0.29024]
[1735902101925,0.29024,3448.0,3447.9,1.30189767]
[1735902103528,2.56864899,3448.0,3447.9,1.30189767]
[1735902104122,2.56864899,3448.0,3447.9,1.01165767]
[1735902104532,2.56864899,3448.0,3447.9,1.30189767]
[1735902104728,2.27840899,3448.0,3447.9,1.30189767]
[1735902105730,2.27840899,3448.1,3447.9,1.01165767]
[1735902106026,2.56863899,3448.1,3448.0,0.29024]
[1735902106332,0.29024,3448.0,3447.9,1.30189767]
[1735902106822,0.29024,3448.0,3447.9,1.01165767]
[1735902108518,0.29024,3448.0,3447.9,1.30189767]
[1735902109629,2.27840899,3448.1,3447.9,1.01165767]
[1735902109830,2.27840899,3448.1,3448.0,3.49804]
[1735902110031,2.27840899,3448.2,3448.1,0.29023]
[1735902110235,2.27840899,3448.2,3448.1,1.30188767]
[1735902111036,2.27840899,3448.2,3448.1,0.29023]
[1735902111333,2.56860899,3448.5,3448.4,0.2902]
[1735902111535,2.56860899,3448.5,3448.4,1.30185767]
[1735902112034,2.27840899,3448.5,3448.4,1.30185767]
[1735902112239,2.27840899,3448.5,3448.4,4.50965767]
[1735902112529,2.27840899,3448.6,3448.5,0.29019]
[1735902112931,43.07840899,3448.6,3448.5,0.29019]
[1735902113238,2.27840899,3448.6,3448.5,0.29019]
[1735902113836,40.8,3448.7,3448.4,4.21945767]
[1735902114037,40.8,3448.7,3448.6,1.30184767]
[1735902116540,41.09018,3448.7,3448.6,1.30184767]
[1735902118635,41.09018,3448.7,3448.4,3.2078]
[1735902118844,0.29019,3448.5,3448.4,3.498]
[1735902121440,2.27840899,3448.6,3448.4,3.498]
[1735902121740,2.27840899,3448.6,3448.5,1.30184767]
[1735902122137,2.27840899,3448.6,3448.5,6.30184767]
[1735902122438,2.27840899,3448.7,3448.6,0.29019]
[1735902124052,2.56852899,3449.5,3449.4,0.29012]
[1735902126650,0.29012,3449.5,3449.4,0.29012]
[1735902130857,2.56851899,3449.6,3449.5,0.29011]
[1735902131253,0.29011,3449.6,3449.5,0.29011]
[1735902132158,2.56849899,3449.7,3449.6,0.2901]
[1735902134757,2.27840899,3449.7,3449.3,3.2078]
[1735902134954,0.29012,3449.6,3449.5,0.2901]
[1735902145662,2.27840899,3449.7,3449.6,0.2901]
[1735902145864,2.27840899,3449.7,3449.6,1.29973384]
[1735902148071,0.29007,3450.0,3449.9,0.29008]
[1735902148072,2.56847899,3450.0,3449.9,0.29008]
[1735902153070,0.29007,3450.0,3449.9,0.29008]
[1735902154064,3.70768349,3450.0,3449.9,0.29008]
[1735902154671,3.41761349,3450.0,3449.9,0.29008]
[1735902155366,2.27612127,3450.0,3449.9,0.29008]
[1735902155568,2.27612127,3450.0,3449.9,1.29971384]
[1735902157468,43.07612127,3450.4,3449.9,1.00963384]
[1735902157774,43.07612127,3450.4,3450.3,4.50747384]
[1735902158371,43.07612127,3450.4,3450.3,3.49784]
[1735902158773,40.8,3450.4,3450.3,3.49784]
[1735902159269,41.09003,3450.4,3450.3,3.2078]
[1735902160971,0.29004,3450.3,3450.2,0.29005]
[1735902161173,40.8,3450.4,3449.9,6.22851275]
[1735902161378,40.8,3450.4,3450.3,0.29004]
[1735902161379,44.94294121,3450.4,3450.3,0.29004]
[1735902161679,44.65289121,3450.4,3450.3,0.29004]
[1735902162582,40.8,3450.4,3450.3,0.29004]
[1735902163874,2.2750322,3450.6,3450.3,3.2078]
[1735902164068,2.2750322,3450.6,3450.5,2.58556275]
[1735902165184,40.8,3450.8,3450.7,0.29001]
[1735902165384,40.8,3450.8,3450.7,3.49781]
[1735902167382,2.2750322,3451.1,3451.0,0.28998]
[1735902167779,43.0750322,3451.1,3451.0,0.28998]
[1735902168486,40.8,3451.1,3451.0,0.28998]
[1735902174483,0.29,3450.9,3450.8,0.28999]
[1735902179687,0.28999,3451.0,3450.9,0.28998]
[1735902184489,46.30333275,3451.1,3450.3,3.9329]
[1735902184700,0.29003,3450.5,3450.4,0.29002]
[1735902185397,2.29553275,3450.5,3449.8,3.2078]
[1735902185696,0.29006,3450.2,3450.1,0.29005]
[1735902186094,0.29007,3450.1,3450.0,0.29006]
[1735902186707,0.29005,3450.2,3450.1,0.29004]
[1735902187007,0.29003,3450.5,3450.4,0.29003]
[1735902187513,44.50764349,3450.5,3450.4,0.29003]
[1735902188007,44.21761349,3450.5,3450.4,0.29003]
[1735902188207,3.41761349,3450.5,3450.4,0.29003]
[1735902188397,2.2736641,3450.6,3450.5,0.29003]
[1735902188798,2.5636841,3450.6,3450.5,0.29003]
[1735902189709,2.2736641,3450.6,3450.5,0.29003]
[1735902190710,2.5636841,3450.6,3450.5,0.29003]
[1735902191413,0.29002,3450.6,3450.5,0.29003]
[1735902192615,3.70763349,3450.6,3450.5,0.29003]
[1735902194710,4.14288389,3450.6,3450.5,0.29003]
[1735902195815,0.7252704,3450.6,3450.5,0.29003]
[1735902197115,4.858131,3450.6,3450.5,0.29003]
[1735902198208,0.7252704,3450.6,3450.5,0.29003]
[1735902199714,5.2933814,3450.6,3450.5,0.29003]
[1735902201219,0.7252704,3450.6,3450.5,0.29003]
[1735902202814,0.29002,3450.6,3450.5,0.29003]
[1735902203013,0.4352504,3450.7,3450.2,6.22845275]
[1735902203221,0.7252604,3450.7,3450.6,0.29002]
[1735902203616,41.5252604,3450.7,3450.6,0.29002]
[1735902204025,46.08271329,3450.7,3450.6,0.29002]
[1735902207324,45.79270329,3450.7,3450.2,0.72512]
[1735902207530,0.29004,3450.5,3450.4,0.29002]
[1735902209025,5.31406179,3450.5,3450.4,0.29002]
[1735902210236,6.32329146,3450.5,3450.4,0.29002]
[1735902210425,6.32328146,3450.5,3450.4,0.29002]
[1735902211627,1.73451007,3450.5,3450.4,0.29002]
[1735902213038,1.29925967,3450.5,3450.4,0.29002]
[1735902213432,1.00922967,3450.5,3450.4,0.29002]
[1735902213631,11.02722171,3450.6,3450.5,0.29003]
[1735902214124,6.00328045,3450.6,3450.5,0.29003]
[1735902215737,5.28348842,3450.6,3450.5,0.29003]
[1735902220446,4.99346842,3450.6,3450.5,0.29003]
[1735902222345,0.43525375,3450.6,3450.5,0.29003]
[1735902223844,0.72527375,3450.6,3450.5,0.29003]
[1735902224044,0.43525375,3450.6,3450.5,0.29003]
[1735902224238,10.74148636,3450.6,3450.5,0.29003]
[1735902228444,5.02822591,3450.6,3450.5,0.29003]
[1735902229636,5.02822591,3450.6,3450.5,3.49783]
[1735902230850,4.56574779,3450.6,3450.5,8.04067446]
[1735902232051,5.00100154,3450.7,3450.6,0.29002]
[1735902232253,5.00100154,3450.7,3450.6,1.29924967]
[1735902234946,5.00100154,3450.7,3450.6,0.29002]
[1735902235154,5.00100154,3450.7,3450.6,1.29924967]
[1735902237049,5.00100154,3450.7,3450.6,2.41524967]
[1735902237351,3.42241,3450.7,3450.6,6.95809413]
[1735902238353,0.7885,3450.7,3450.6,7.9673238]
[1735902238555,4.56574779,3450.9,3450.6,7.9673238]
[1735902238752,4.56574779,3450.9,3450.8,2.30845934]
[1735902238947,2.28088772,3450.9,3450.8,2.30845934]
[1735902240453,2.28088772,3451.2,3451.1,0.28998]
[1735902240756,2.28088772,3451.2,3451.1,3.49778]
[1735902241259,43.08088772,3451.3,3451.2,0.28997]
[1735902241463,43.08088772,3451.3,3451.2,1.29919967]
[1735902241946,43.37084772,3451.3,3451.2,1.29919967]
[1735902242554,43.08088772,3451.3,3451.2,1.29919967]
[1735902242765,43.37084772,3451.3,3451.2,1.29919967]
[1735902247052,41.08996,3451.3,3451.2,1.29919967]
[1735902251060,43.36633515,3451.3,3451.2,1.29919967]
[1735902253056,41.08996,3451.3,3451.2,1.29919967]
[1735902255659,43.36613502,3451.3,3451.2,1.29919967]
[1735902255861,2.27617502,3451.3,3451.2,1.29919967]
[1735902256363,43.36613502,3451.3,3451.2,1.29919967]
[1735902256559,2.27617502,3451.3,3451.2,1.29919967]
[1735902256765,0.28995,3451.4,3451.2,1.00922967]
[1735902256960,2.27617502,3451.6,3451.5,0.28994]
[1735902256961,2.56611502,3451.6,3451.5,0.28994]
[1735902257267,2.56611502,3451.6,3451.5,1.29916967]
[1735902258064,2.56610502,3451.7,3451.5,1.00922967]
[1735902258265,2.56610502,3451.7,3451.6,1.29915967]
[1735902262366,2.56610502,3451.7,3451.6,1.29746308]
[1735902262367,0.28993,3451.7,3451.6,1.29746308]
[1735902265973,0.28993,3451.7,3451.4,3.2078]
[1735902266279,0.28994,3451.5,3451.4,3.49774]
[1735902266577,43.07617502,3451.8,3451.4,3.2078]
[1735902266773,0.28994,3451.7,3451.6,0.28992]
[1735902267676,0.28994,3451.7,3451.6,1.00922967]
[1735902267873,0.28994,3451.7,3451.6,1.29915967]
[1735902269576,2.56611502,3451.7,3451.6,1.29915967]
[1735902270584,0.28994,3451.7,3451.6,1.29915967]
[1735902274280,2.56611502,3451.7,3451.6,1.29915967]
[1735902275981,2.56609502,3451.7,3451.6,1.29915967]
[1735902277186,0.28992,3451.7,3451.6,1.29915967]
[1735902277576,0.28992,3451.7,3451.6,0.28993]
[1735902277786,0.28992,3451.7,3451.6,1.00922967]
[1735902277981,41.08992,3451.7,3451.6,1.00922967]
[1735902279989,41.5250232,3451.7,3451.6,1.00922967]
[1735902280183,41.5250232,3451.7,3451.6,1.29915967]
[1735902280385,0.7250232,3451.7,3451.6,1.29915967]
[1735902281189,0.28992,3451.7,3451.6,1.29915967]
[1735902283984,0.72499404,3451.7,3451.6,1.29915967]
[1735902300600,5.29074183,3451.7,3451.6,1.29915967]
[1735902303502,0.43507404,3451.7,3451.6,1.29915967]
[1735902304495,41.23507404,3451.7,3451.6,1.29915967]
[1735902305005,41.52499404,3451.7,3451.6,1.29915967]
[1735902305203,41.52499404,3451.7,3451.6,5.46532412]
[1735902305204,41.08992,3451.7,3451.6,5.46532412]
[1735902305403,40.8,3451.7,3451.6,5.46532412]
[1735902306716,41.08992,3451.7,3451.6,5.46532412]
[1735902306906,41.23507404,3451.7,3451.6,5.46532412]
[1735902307110,41.52499404,3451.7,3451.6,5.46532412]
[1735902308406,41.52499404,3451.7,3451.6,5.84253235]
[1735902309611,46.09047228,3451.7,3451.6,5.84253235]
[1735902314407,46.09047228,3451.7,3451.6,1.29915967]
[1735902315615,46.09047228,3451.7,3451.6,5.84253235]
[1735902326411,41.52499404,3451.7,3451.6,5.84253235]
[1735902328515,41.23507404,3451.7,3451.6,5.84253235]
[1735902329418,41.52499404,3451.7,3451.6,5.84253235]
[1735902329725,41.23507404,3451.7,3451.6,5.84253235]
[1735902330816,41.52499404,3451.7,3451.6,5.84253235]
[1735902332025,41.52499404,3451.7,3451.6,4.83330268]
[1735902333419,41.52499404,3451.7,3451.6,4.54337268]
[1735902333616,42.53422371,3451.7,3451.6,4.54337268]
[1735902334123,45.74202371,3451.7,3451.6,4.54337268]
[1735902334629,45.74202371,3451.7,3451.3,4.54337268]
[1735902334630,54.96318821,3451.7,3451.3,4.54337268]
[1735902334818,0.28995,3451.4,3451.3,4.54337268]
[1735902335826,0.28995,3451.4,3451.3,5.55260235]
[1735902336028,5.23610854,3451.4,3451.3,1.29918967]
[1735902337125,5.28776019,3451.4,3451.3,1.29918967]
[1735902338635,4.85268615,3451.4,3451.3,1.29918967]
[1735902340229,0.72502404,3451.4,3451.3,1.29918967]
[1735902340929,0.43507404,3451.4,3451.1,1.00922967]
[1735902341134,0.43507404,3451.4,3451.0,4.54337268]
[1735902341334,0.28998,3451.1,3451.0,4.54337268]
[1735902341830,0.28998,3451.1,3451.0,0.28998]
[1735902342036,0.28998,3451.0,3450.9,4.50701967]
[1735902342328,0.28998,3451.0,3450.9,3.2078]
[1735902342536,0.29,3450.8,3450.7,5.84260235]
[1735902343535,0.29,3450.8,3450.7,1.29922967]
[1735902344834,0.29003,3450.6,3450.5,0.29002]
[1735902345030,0.29003,3450.6,3450.5,1.29924967]
[1735902346333,2.56912051,3450.6,3450.5,1.29924967]
[1735902346734,2.56912051,3450.6,3450.5,1.00922967]
[1735902346935,2.56912051,3450.6,3450.5,1.29925967]
[1735902347136,2.56912051,3450.6,3450.5,1.00922967]
[1735902348038,0.29003,3450.6,3450.5,1.00922967]
[1735902348335,0.29003,3450.6,3450.5,1.29925967]
[1735902350138,0.29003,3450.6,3450.0,7.75117268]
[1735902350334,0.29005,3450.3,3450.2,0.29004]
[1735902351144,0.29004,3450.4,3450.3,0.29003]
[1735902352045,0.29004,3450.4,3450.3,1.29925967]
[1735902353150,2.27909051,3450.7,3450.3,1.00922967]
[1735902353446,2.27909051,3450.7,3450.2,3.2078]
[1735902353447,0.29001,3450.7,3450.6,1.29924967]
[1735902356052,0.29001,3450.7,3450.6,1.00922967]
[1735902356750,0.29001,3450.7,3450.6,1.29924967]
[1735902357851,0.29001,3450.7,3450.6,1.00922967]
[1735902358851,0.29001,3450.7,3450.6,1.29924967]
[1735902364359,41.09001,3450.7,3450.6,1.29924967]
[1735902365951,40.8,3450.7,3450.6,1.29924967]
[1735902366651,2.27909051,3450.9,3450.8,0.29]
[1735902366852,2.27909051,3450.9,3450.8,1.29922967]
[1735902367051,0.28999,3451.0,3450.9,0.28999]
[1735902367052,2.56908051,3451.0,3450.9,0.28999]
[1735902367758,2.27909051,3451.0,3450.9,3.49779]
[1735902368457,43.07909051,3451.0,3450.9,3.49779]
[1735902368659,41.08998,3451.0,3450.9,3.49779]
[1735902368852,40.8,3451.0,3450.9,3.49779]
[1735902370660,0.28998,3451.1,3450.9,3.2078]
[1735902370859,0.28998,3451.1,3451.0,1.29920967]